[Event "Titled Tuesday Blitz May 10 Early 2022"]
[White "Ozates, Tuna"]
[Black "Mica, Marek"]
[WhiteFideId "6354521"]
[BlackFideId "382884"]
[WhiteElo "1887"]
[BlackElo "2100"]
[Result "1/2-1/2"]
[Round "02"]
[TimeControl "180+1"]
[Date "2022.05.11"]
[WhiteClock "0:00:35"]
[BlackClock "0:00:20"]

1. d4 {[%clk 0:03:00]}  Nf6 {[%clk 0:02:59]} 2. Bg5 {[%clk 0:03:00]}  d5 {[%clk 0:02:56]} 3. Bxf6 {[%clk 0:03:00]}  gxf6 {[%clk 0:02:55]} 4. c4 {[%clk 0:03:00]}  c6 {[%clk 0:02:54]} 5. Nc3 {[%clk 0:02:59]}  Bg7 {[%clk 0:02:51]} 6. e3 {[%clk 0:02:57]}  O-O {[%clk 0:02:48]} 7. Qh5 {[%clk 0:02:55]}  f5 {[%clk 0:02:27]} 8. cxd5 {[%clk 0:02:52]}  cxd5 {[%clk 0:02:27]} 9. Bd3 {[%clk 0:02:53]}  e5 {[%clk 0:02:09]} 10. dxe5 {[%clk 0:02:50]}  Bxe5 {[%clk 0:02:10]} 11. Nf3 {[%clk 0:02:44]}  Bxc3+ {[%clk 0:02:01]} 12. bxc3 {[%clk 0:02:44]}  Qf6 {[%clk 0:01:49]} 13. Rc1 {[%clk 0:02:20]}  Nc6 {[%clk 0:01:46]} 14. Nd4 {[%clk 0:02:12]}  Nxd4 {[%clk 0:01:40]} 15. cxd4 {[%clk 0:02:13]}  Be6 {[%clk 0:01:38]} 16. h4 {[%clk 0:02:02]}  Rfc8 {[%clk 0:01:37]} 17. Ke2 {[%clk 0:02:01]}  Qg6 {[%clk 0:01:34]} 18. Qf3 {[%clk 0:01:56]}  h5 {[%clk 0:01:28]} 19. Rxc8+ {[%clk 0:01:54]}  Rxc8 {[%clk 0:01:24]} 20. Rh3 {[%clk 0:01:55]}  Kf8 {[%clk 0:00:48]} 21. Rg3 {[%clk 0:01:54]}  Qf6 {[%clk 0:00:48]} 22. Qxh5 {[%clk 0:01:53]}  Ke7 {[%clk 0:00:46]} 23. Rf3 {[%clk 0:01:50]}  Rh8 {[%clk 0:00:44]} 24. Qg5 {[%clk 0:01:50]}  Rxh4 {[%clk 0:00:43]} 25. Qxf6+ {[%clk 0:01:50]}  Kxf6 {[%clk 0:00:44]} 26. Rg3 {[%clk 0:01:49]}  Rg4 {[%clk 0:00:44]} 27. Kf3 {[%clk 0:01:47]}  Kg5 {[%clk 0:00:41]} 28. Rh3 {[%clk 0:01:46]}  Rh4 {[%clk 0:00:41]} 29. Rxh4 {[%clk 0:01:46]}  Kxh4 {[%clk 0:00:42]} 30. Kf4 {[%clk 0:01:46]}  a5 {[%clk 0:00:32]} 31. Bxf5 {[%clk 0:01:44]}  b5 {[%clk 0:00:30]} 32. Bxe6 {[%clk 0:01:26]}  fxe6 {[%clk 0:00:30]} 33. e4 {[%clk 0:01:25]}  b4 {[%clk 0:00:25]} 34. exd5 {[%clk 0:01:24]}  exd5 {[%clk 0:00:26]} 35. Ke3 {[%clk 0:01:22]}  a4 {[%clk 0:00:26]} 36. Kd3 {[%clk 0:01:06]}  Kg4 {[%clk 0:00:22]} 37. Kd2 {[%clk 0:00:54]}  Kf4 {[%clk 0:00:20]} 38. Kd3 {[%clk 0:00:51]}  Kg4 {[%clk 0:00:20]} 39. Kc2 {[%clk 0:00:35]}  Kf4 {[%clk 0:00:20]} 40. Kd3 {[%clk 0:00:35]}  Kg4 {[%clk 0:00:20]} 1/2-1/2


[Site "https://www.chess.com"]

[Event "Titled Tuesday Blitz May 10 Early 2022"]
[White "Piesik, Piotr"]
[Black "Dubov, Daniil"]
[WhiteFideId "1136194"]
[BlackFideId "24126055"]
[WhiteElo "2190"]
[BlackElo "2791"]
[Result "0-1"]
[Round "02"]
[TimeControl "180+1"]
[Date "2022.05.10"]
[WhiteClock "0:01:16"]
[BlackClock "0:02:07"]

1. Nf3 {[%clk 0:02:54]}  Nf6 {[%clk 0:02:58]} 2. g3 {[%clk 0:02:54]}  b6 {[%clk 0:02:56]} 3. Bg2 {[%clk 0:02:49]}  Bb7 {[%clk 0:02:57]} 4. O-O {[%clk 0:02:48]}  g6 {[%clk 0:02:56]} 5. c4 {[%clk 0:02:47]}  c5 {[%clk 0:02:55]} 6. Nc3 {[%clk 0:02:47]}  Bg7 {[%clk 0:02:55]} 7. d3 {[%clk 0:02:46]}  O-O {[%clk 0:02:54]} 8. e4 {[%clk 0:02:46]}  d6 {[%clk 0:02:53]} 9. Ne1 {[%clk 0:02:45]}  Nc6 {[%clk 0:02:52]} 10. f4 {[%clk 0:02:45]}  Nd7 {[%clk 0:02:52]} 11. Nc2 {[%clk 0:02:45]}  a6 {[%clk 0:02:50]} 12. Be3 {[%clk 0:02:43]}  b5 {[%clk 0:02:49]} 13. Qd2 {[%clk 0:02:39]}  Nb6 {[%clk 0:02:44]} 14. b3 {[%clk 0:02:21]}  b4 {[%clk 0:02:43]} 15. Nd5 {[%clk 0:02:21]}  Bxa1 {[%clk 0:02:39]} 16. Rxa1 {[%clk 0:02:22]}  Nd7 {[%clk 0:02:36]} 17. f5 {[%clk 0:02:19]}  e6 {[%clk 0:02:29]} 18. Nf4 {[%clk 0:02:14]}  Qe7 {[%clk 0:02:25]} 19. fxe6 {[%clk 0:02:08]}  fxe6 {[%clk 0:02:25]} 20. Bh3 {[%clk 0:02:09]}  Rf6 {[%clk 0:02:22]} 21. a3 {[%clk 0:01:35]}  Nde5 {[%clk 0:02:18]} 22. Kh1 {[%clk 0:01:31]}  a5 {[%clk 0:02:09]} 23. a4 {[%clk 0:01:21]}  Raf8 {[%clk 0:02:08]} 24. Re1 {[%clk 0:01:16]}  Nf3 {[%clk 0:02:07]} 0-1


[Site "https://www.chess.com"]

[Event "Titled Tuesday Blitz May 10 Early 2022"]
[White "Polster, Christian"]
[Black "Garagulya, Konstantin"]
[WhiteFideId "12965081"]
[BlackFideId "4128931"]
[WhiteElo "2286"]
[BlackElo "2329"]
[Result "1-0"]
[Round "02"]
[TimeControl "180+1"]
[Date "2022.05.11"]
[WhiteClock "0:00:14"]
[BlackClock "0:00:17"]

1. e4 {[%clk 0:03:00]}  c5 {[%clk 0:02:52]} 2. Nc3 {[%clk 0:02:26]}  a6 {[%clk 0:02:50]} 3. g3 {[%clk 0:02:23]}  b5 {[%clk 0:02:50]} 4. Bg2 {[%clk 0:02:23]}  Bb7 {[%clk 0:02:50]} 5. Nge2 {[%clk 0:02:24]}  e6 {[%clk 0:02:49]} 6. O-O {[%clk 0:02:23]}  d5 {[%clk 0:02:49]} 7. exd5 {[%clk 0:02:22]}  exd5 {[%clk 0:02:48]} 8. d4 {[%clk 0:02:23]}  Nf6 {[%clk 0:02:45]} 9. Re1 {[%clk 0:02:21]}  Be7 {[%clk 0:02:40]} 10. dxc5 {[%clk 0:02:21]}  O-O {[%clk 0:02:40]} 11. Nf4 {[%clk 0:02:21]}  Bxc5 {[%clk 0:02:38]} 12. Ncxd5 {[%clk 0:02:18]}  Nxd5 {[%clk 0:02:37]} 13. Nxd5 {[%clk 0:02:19]}  Ra7 {[%clk 0:02:23]} 14. b4 {[%clk 0:01:57]}  Bxd5 {[%clk 0:02:16]} 15. bxc5 {[%clk 0:01:40]}  Bxg2 {[%clk 0:02:15]} 16. Kxg2 {[%clk 0:01:33]}  Qc8 {[%clk 0:02:01]} 17. Be3 {[%clk 0:01:29]}  Nd7 {[%clk 0:01:47]} 18. Qd6 {[%clk 0:01:14]}  Rc7 {[%clk 0:01:47]} 19. a4 {[%clk 0:01:09]}  Nxc5 {[%clk 0:01:45]} 20. axb5 {[%clk 0:01:09]}  axb5 {[%clk 0:01:45]} 21. Kg1 {[%clk 0:00:55]}  Ne6 {[%clk 0:01:39]} 22. Rab1 {[%clk 0:00:49]}  Rxc2 {[%clk 0:01:30]} 23. Rxb5 {[%clk 0:00:47]}  Qc4 {[%clk 0:01:22]} 24. Rb8 {[%clk 0:00:40]}  Rxb8 {[%clk 0:01:15]} 25. Qxb8+ {[%clk 0:00:41]}  Qc8 {[%clk 0:01:15]} 26. Qxc8+ {[%clk 0:00:38]}  Rxc8 {[%clk 0:01:16]} 27. Kg2 {[%clk 0:00:37]}  h6 {[%clk 0:01:16]} 28. g4 {[%clk 0:00:33]}  Rc4 {[%clk 0:01:15]} 29. h3 {[%clk 0:00:32]}  Kh7 {[%clk 0:01:15]} 30. Ra1 {[%clk 0:00:30]}  Kg6 {[%clk 0:01:15]} 31. Ra6 {[%clk 0:00:28]}  Kh7 {[%clk 0:01:08]} 32. f4 {[%clk 0:00:24]}  Rc3 {[%clk 0:01:06]} 33. Kf3 {[%clk 0:00:22]}  Nc7 {[%clk 0:01:05]} 34. Ra5 {[%clk 0:00:19]}  Rb3 {[%clk 0:01:00]} 35. f5 {[%clk 0:00:19]}  Nb5 {[%clk 0:00:59]} 36. h4 {[%clk 0:00:16]}  Nd6 {[%clk 0:00:54]} 37. Ra7 {[%clk 0:00:15]}  Nc4 {[%clk 0:00:48]} 38. Re7 {[%clk 0:00:15]}  Kg8 {[%clk 0:00:47]} 39. Kf4 {[%clk 0:00:14]}  Kf8 {[%clk 0:00:42]} 40. Re4 {[%clk 0:00:14]}  Nxe3 {[%clk 0:00:37]} 41. Rxe3 {[%clk 0:00:15]}  Rb1 {[%clk 0:00:37]} 42. g5 {[%clk 0:00:15]}  h5 {[%clk 0:00:36]} 43. Ke5 {[%clk 0:00:14]}  Rg1 {[%clk 0:00:37]} 44. Re4 {[%clk 0:00:14]}  Ra1 {[%clk 0:00:35]} 45. f6 {[%clk 0:00:14]}  Ra5+ {[%clk 0:00:35]} 46. Kf4 {[%clk 0:00:14]}  gxf6 {[%clk 0:00:34]} 47. gxf6 {[%clk 0:00:15]}  Kg8 {[%clk 0:00:33]} 48. Re5 {[%clk 0:00:15]}  Rxe5 {[%clk 0:00:16]} 49. Kxe5 {[%clk 0:00:15]}  Kh7 {[%clk 0:00:16]} 50. Kd6 {[%clk 0:00:13]}  Kh6 {[%clk 0:00:17]} 51. Kd7 {[%clk 0:00:12]}  Kh7 {[%clk 0:00:16]} 52. Ke8 {[%clk 0:00:12]}  Kg6 {[%clk 0:00:15]} 53. Ke7 {[%clk 0:00:12]}  Kf5 {[%clk 0:00:15]} 54. Kxf7 {[%clk 0:00:12]}  Kg4 {[%clk 0:00:16]} 55. Kg7 {[%clk 0:00:13]}  Kxh4 {[%clk 0:00:17]} 56. f7 {[%clk 0:00:14]} 1-0


[Site "https://www.chess.com"]

[Event "Titled Tuesday Blitz May 10 Early 2022"]
[White "Redzisz, Michal"]
[Black "Riehle, Marco"]
[WhiteFideId "21816107"]
[BlackFideId "12904392"]
[WhiteElo "2004"]
[BlackElo "2462"]
[Result "0-1"]
[Round "02"]
[TimeControl "180+1"]
[Date "2022.05.11"]
[WhiteClock "0:00:58"]
[BlackClock "0:01:16"]

1. Nf3 {[%clk 0:03:00]}  d5 {[%clk 0:02:59]} 2. b3 {[%clk 0:02:59]}  c5 {[%clk 0:02:59]} 3. Bb2 {[%clk 0:03:00]}  Nc6 {[%clk 0:02:59]} 4. e3 {[%clk 0:03:00]}  Nf6 {[%clk 0:02:59]} 5. Bb5 {[%clk 0:03:00]}  Bd7 {[%clk 0:02:58]} 6. O-O {[%clk 0:03:00]}  e6 {[%clk 0:02:56]} 7. d3 {[%clk 0:02:57]}  Bd6 {[%clk 0:02:55]} 8. Bxc6 {[%clk 0:02:56]}  Bxc6 {[%clk 0:02:55]} 9. Ne5 {[%clk 0:02:57]}  Bxe5 {[%clk 0:02:54]} 10. Bxe5 {[%clk 0:02:58]}  O-O {[%clk 0:02:55]} 11. Nd2 {[%clk 0:02:56]}  Nd7 {[%clk 0:02:54]} 12. Bg3 {[%clk 0:02:48]}  e5 {[%clk 0:02:52]} 13. e4 {[%clk 0:02:49]}  dxe4 {[%clk 0:02:51]} 14. dxe4 {[%clk 0:02:46]}  f6 {[%clk 0:02:52]} 15. Qe2 {[%clk 0:02:44]}  Qe7 {[%clk 0:02:43]} 16. f3 {[%clk 0:02:39]}  Rfd8 {[%clk 0:02:41]} 17. Rfd1 {[%clk 0:02:39]}  Nf8 {[%clk 0:02:39]} 18. Bf2 {[%clk 0:02:36]}  b6 {[%clk 0:02:37]} 19. Nc4 {[%clk 0:02:28]}  Bb5 {[%clk 0:02:30]} 20. a4 {[%clk 0:02:27]}  Ba6 {[%clk 0:02:29]} 21. Rxd8 {[%clk 0:02:25]}  Rxd8 {[%clk 0:02:28]} 22. Rd1 {[%clk 0:02:25]}  Rxd1+ {[%clk 0:02:23]} 23. Qxd1 {[%clk 0:02:25]}  Bxc4 {[%clk 0:02:23]} 24. bxc4 {[%clk 0:02:26]}  Qd7 {[%clk 0:02:24]} 25. Qd5+ {[%clk 0:02:07]}  Qxd5 {[%clk 0:02:23]} 26. cxd5 {[%clk 0:02:04]}  Kf7 {[%clk 0:02:23]} 27. a5 {[%clk 0:02:00]}  Ng6 {[%clk 0:02:12]} 28. axb6 {[%clk 0:01:59]}  axb6 {[%clk 0:02:12]} 29. Kf1 {[%clk 0:01:58]}  Ke7 {[%clk 0:02:12]} 30. g3 {[%clk 0:01:54]}  Kd6 {[%clk 0:02:12]} 31. Ke2 {[%clk 0:01:55]}  b5 {[%clk 0:02:10]} 32. Kd3 {[%clk 0:01:54]}  Ne7 {[%clk 0:02:09]} 33. Be1 {[%clk 0:01:50]}  f5 {[%clk 0:02:05]} 34. Ba5 {[%clk 0:01:41]}  fxe4+ {[%clk 0:01:55]} 35. fxe4 {[%clk 0:01:41]}  h5 {[%clk 0:01:49]} 36. Bd8 {[%clk 0:01:38]}  Ng6 {[%clk 0:01:45]} 37. Bg5 {[%clk 0:01:31]}  Nf8 {[%clk 0:01:42]} 38. Ke3 {[%clk 0:01:23]}  Nd7 {[%clk 0:01:40]} 39. Bd8 {[%clk 0:01:19]}  c4 {[%clk 0:01:33]} 40. h3 {[%clk 0:01:15]}  b4 {[%clk 0:01:26]} 41. Ba5 {[%clk 0:01:13]}  Kc5 {[%clk 0:01:26]} 42. Bc7 {[%clk 0:01:13]}  b3 {[%clk 0:01:23]} 43. cxb3 {[%clk 0:01:13]}  cxb3 {[%clk 0:01:24]} 44. Kd3 {[%clk 0:01:13]}  b2 {[%clk 0:01:22]} 45. Kc2 {[%clk 0:01:14]}  Kd4 {[%clk 0:01:23]} 46. Kxb2 {[%clk 0:01:10]}  Kxe4 {[%clk 0:01:23]} 47. d6 {[%clk 0:00:58]}  Kf3 {[%clk 0:01:21]} 48. g4 {[%clk 0:00:58]}  h4 {[%clk 0:01:18]} 49. Bd8 {[%clk 0:00:58]}  Kg3 {[%clk 0:01:17]} 50. Kc3 {[%clk 0:00:58]}  Kxh3 {[%clk 0:01:17]} 51. g5 {[%clk 0:00:58]}  Kg2 {[%clk 0:01:16]} 0-1


[Site "https://www.chess.com"]

[Event "Titled Tuesday Blitz May 10 Early 2022"]
[White "Reprintsev, Alexander"]
[Black "Ismayil, Malak"]
[WhiteFideId "14100541"]
[BlackFideId "13412604"]
[WhiteElo "2108"]
[BlackElo "1879"]
[Result "1-0"]
[Round "02"]
[TimeControl "180+1"]
[Date "2022.05.11"]
[WhiteClock "0:01:18"]
[BlackClock "0:00:25"]

1. e4 {[%clk 0:02:38]}  e5 {[%clk 0:02:58]} 2. f4 {[%clk 0:02:35]}  d5 {[%clk 0:02:57]} 3. exd5 {[%clk 0:02:34]}  Qxd5 {[%clk 0:02:57]} 4. Nc3 {[%clk 0:02:34]}  Qa5 {[%clk 0:02:58]} 5. fxe5 {[%clk 0:02:34]}  Qxe5+ {[%clk 0:02:57]} 6. Qe2 {[%clk 0:02:34]}  Qxe2+ {[%clk 0:02:56]} 7. Bxe2 {[%clk 0:02:34]}  Nc6 {[%clk 0:02:57]} 8. Nb5 {[%clk 0:02:33]}  Kd8 {[%clk 0:02:55]} 9. Nf3 {[%clk 0:02:26]}  a6 {[%clk 0:02:53]} 10. Nbd4 {[%clk 0:02:26]}  Nxd4 {[%clk 0:02:52]} 11. Nxd4 {[%clk 0:02:27]}  Nf6 {[%clk 0:02:52]} 12. Bf3 {[%clk 0:02:22]}  c5 {[%clk 0:02:51]} 13. Nb3 {[%clk 0:02:22]}  Kc7 {[%clk 0:02:50]} 14. d3 {[%clk 0:02:21]}  Bd6 {[%clk 0:02:51]} 15. O-O {[%clk 0:02:19]}  Nd7 {[%clk 0:02:45]} 16. Be3 {[%clk 0:02:13]}  Rb8 {[%clk 0:02:36]} 17. Bg4 {[%clk 0:02:05]}  f6 {[%clk 0:02:22]} 18. Bxd7 {[%clk 0:01:58]}  Bxd7 {[%clk 0:02:22]} 19. Bxc5 {[%clk 0:01:58]}  b6 {[%clk 0:02:10]} 20. Bxd6+ {[%clk 0:01:57]}  Kxd6 {[%clk 0:02:11]} 21. Rfe1 {[%clk 0:01:52]}  Rbc8 {[%clk 0:02:10]} 22. c3 {[%clk 0:01:52]}  Bf5 {[%clk 0:02:06]} 23. Rad1 {[%clk 0:01:48]}  Bg4 {[%clk 0:01:58]} 24. Rd2 {[%clk 0:01:48]}  h5 {[%clk 0:01:27]} 25. h3 {[%clk 0:01:47]}  Bd7 {[%clk 0:01:26]} 26. Rde2 {[%clk 0:01:47]}  g5 {[%clk 0:01:22]} 27. Nd2 {[%clk 0:01:45]}  f5 {[%clk 0:01:13]} 28. Nc4+ {[%clk 0:01:45]}  Kc7 {[%clk 0:01:07]} 29. Re7 {[%clk 0:01:44]}  Rhd8 {[%clk 0:00:51]} 30. R1e5 {[%clk 0:01:39]}  b5 {[%clk 0:00:46]} 31. Ne3 {[%clk 0:01:38]}  Kd6 {[%clk 0:00:45]} 32. d4 {[%clk 0:01:34]}  f4 {[%clk 0:00:43]} 33. Nd5 {[%clk 0:01:27]}  Bc6 {[%clk 0:00:26]} 34. R7e6+ {[%clk 0:01:20]}  Kd7 {[%clk 0:00:26]} 35. Nb6+ {[%clk 0:01:20]}  Kc7 {[%clk 0:00:25]} 36. Nxc8 {[%clk 0:01:18]} 1-0


[Site "https://www.chess.com"]

[Event "Titled Tuesday Blitz May 10 Early 2022"]
[White "Rohith Krishna S"]
[Black "Pasti, Aron"]
[WhiteFideId "46617051"]
[BlackFideId "785857"]
[WhiteElo "2117"]
[BlackElo "2133"]
[Result "1-0"]
[Round "02"]
[TimeControl "180+1"]
[Date "2022.05.11"]
[WhiteClock "0:01:57"]
[BlackClock "0:00:08"]

1. e4 {[%clk 0:03:00]}  c5 {[%clk 0:01:34]} 2. Nf3 {[%clk 0:02:57]}  e6 {[%clk 0:01:34]} 3. d4 {[%clk 0:02:57]}  cxd4 {[%clk 0:01:35]} 4. Nxd4 {[%clk 0:02:57]}  Nc6 {[%clk 0:01:36]} 5. Nc3 {[%clk 0:02:53]}  Qc7 {[%clk 0:01:35]} 6. Be2 {[%clk 0:02:51]}  Nf6 {[%clk 0:01:34]} 7. O-O {[%clk 0:02:51]}  Be7 {[%clk 0:01:12]} 8. h3 {[%clk 0:02:49]}  O-O {[%clk 0:01:12]} 9. Nb3 {[%clk 0:02:46]}  Rd8 {[%clk 0:01:09]} 10. Bf3 {[%clk 0:02:46]}  Ne5 {[%clk 0:01:08]} 11. Bf4 {[%clk 0:02:44]}  Nxf3+ {[%clk 0:00:57]} 12. Qxf3 {[%clk 0:02:45]}  d6 {[%clk 0:00:57]} 13. Rad1 {[%clk 0:02:42]}  a6 {[%clk 0:00:58]} 14. a4 {[%clk 0:02:40]}  b6 {[%clk 0:00:57]} 15. Rfe1 {[%clk 0:02:33]}  Bb7 {[%clk 0:00:50]} 16. Bh2 {[%clk 0:02:33]}  Rac8 {[%clk 0:00:50]} 17. Qe2 {[%clk 0:02:32]}  Qc6 {[%clk 0:00:48]} 18. Nd4 {[%clk 0:02:30]}  Qc4 {[%clk 0:00:47]} 19. Qe3 {[%clk 0:02:29]}  d5 {[%clk 0:00:43]} 20. e5 {[%clk 0:02:20]}  Ne4 {[%clk 0:00:42]} 21. Nxe4 {[%clk 0:02:18]}  dxe4 {[%clk 0:00:43]} 22. b3 {[%clk 0:02:18]}  Qc3 {[%clk 0:00:41]} 23. Bf4 {[%clk 0:02:15]}  Qxe3 {[%clk 0:00:39]} 24. Bxe3 {[%clk 0:02:12]}  Bc5 {[%clk 0:00:34]} 25. c3 {[%clk 0:02:11]}  Kf8 {[%clk 0:00:31]} 26. b4 {[%clk 0:02:11]}  Be7 {[%clk 0:00:29]} 27. Ne2 {[%clk 0:02:09]}  Rd3 {[%clk 0:00:26]} 28. Bxb6 {[%clk 0:02:09]}  Bc6 {[%clk 0:00:20]} 29. Ra1 {[%clk 0:02:06]}  Bd5 {[%clk 0:00:17]} 30. Bd4 {[%clk 0:02:06]}  Bc4 {[%clk 0:00:13]} 31. Nf4 {[%clk 0:02:06]}  Rd2 {[%clk 0:00:12]} 32. Rxe4 {[%clk 0:02:06]}  g5 {[%clk 0:00:11]} 33. Nh5 {[%clk 0:02:03]}  Bd5 {[%clk 0:00:11]} 34. Re3 {[%clk 0:02:03]}  Bxb4 {[%clk 0:00:11]} 35. Nf6 {[%clk 0:02:02]}  Kg7 {[%clk 0:00:09]} 36. Rg3 {[%clk 0:02:01]}  h6 {[%clk 0:00:09]} 37. h4 {[%clk 0:02:01]}  Kg6 {[%clk 0:00:10]} 38. hxg5 {[%clk 0:02:01]}  hxg5 {[%clk 0:00:11]} 39. Be3 {[%clk 0:02:01]}  Bxc3 {[%clk 0:00:09]} 40. Rxg5+ {[%clk 0:02:01]}  Kh6 {[%clk 0:00:08]} 41. Rg8# {[%clk 0:01:57]} 1-0


[Site "https://www.chess.com"]

[Event "Titled Tuesday Blitz May 10 Early 2022"]
[White "Samadov, Read"]
[Black "Vovk, Orest"]
[WhiteFideId "13417444"]
[BlackFideId "14113490"]
[WhiteElo "2084"]
[BlackElo "2203"]
[Result "1-0"]
[Round "02"]
[TimeControl "180+1"]
[Date "2022.05.10"]
[WhiteClock "0:00:41"]
[BlackClock "0:00:54"]

1. d4 {[%clk 0:03:00]}  e5 {[%clk 0:02:58]} 2. dxe5 {[%clk 0:02:59]}  Nc6 {[%clk 0:02:57]} 3. Nf3 {[%clk 0:02:59]}  Qe7 {[%clk 0:02:58]} 4. g3 {[%clk 0:02:52]}  Nxe5 {[%clk 0:02:57]} 5. Nxe5 {[%clk 0:02:52]}  Qxe5 {[%clk 0:02:58]} 6. Bg2 {[%clk 0:02:52]}  Nf6 {[%clk 0:02:58]} 7. c4 {[%clk 0:02:51]}  Bb4+ {[%clk 0:02:57]} 8. Nd2 {[%clk 0:02:36]}  O-O {[%clk 0:02:55]} 9. a3 {[%clk 0:02:36]}  Bxd2+ {[%clk 0:02:37]} 10. Qxd2 {[%clk 0:02:36]}  d6 {[%clk 0:02:36]} 11. O-O {[%clk 0:02:35]}  Qh5 {[%clk 0:02:35]} 12. Re1 {[%clk 0:02:31]}  Rb8 {[%clk 0:02:35]} 13. b3 {[%clk 0:02:29]}  b5 {[%clk 0:02:25]} 14. cxb5 {[%clk 0:02:20]}  Rxb5 {[%clk 0:02:22]} 15. b4 {[%clk 0:02:20]}  Bb7 {[%clk 0:02:19]} 16. e4 {[%clk 0:02:17]}  a5 {[%clk 0:02:06]} 17. Bb2 {[%clk 0:02:14]}  axb4 {[%clk 0:02:04]} 18. axb4 {[%clk 0:02:09]}  Ng4 {[%clk 0:01:59]} 19. h3 {[%clk 0:02:08]}  Ne5 {[%clk 0:01:59]} 20. Qc3 {[%clk 0:02:05]}  Qg6 {[%clk 0:01:43]} 21. f4 {[%clk 0:01:57]}  Nc6 {[%clk 0:01:41]} 22. f5 {[%clk 0:01:08]}  Qh6 {[%clk 0:01:27]} 23. Rf1 {[%clk 0:00:57]}  Ne5 {[%clk 0:01:15]} 24. Qxc7 {[%clk 0:00:50]}  Qe3+ {[%clk 0:01:06]} 25. Kh2 {[%clk 0:00:49]}  Rxb4 {[%clk 0:01:03]} 26. Bxe5 {[%clk 0:00:47]}  dxe5 {[%clk 0:01:01]} 27. Qxe5 {[%clk 0:00:44]}  Rb2 {[%clk 0:01:00]} 28. Qxb2 {[%clk 0:00:43]}  Bxe4 {[%clk 0:00:56]} 29. Rae1 {[%clk 0:00:42]}  Qb6 {[%clk 0:00:54]} 30. Qxb6 {[%clk 0:00:41]} 1-0


[Site "https://www.chess.com"]

[Event "Titled Tuesday Blitz May 10 Early 2022"]
[White "Sanchez, Robert"]
[Black "Roux, Baptiste"]
[WhiteFideId "2034360"]
[BlackFideId "36017450"]
[WhiteElo "2128"]
[BlackElo "1935"]
[Result "1-0"]
[Round "02"]
[TimeControl "180+1"]
[Date "2022.05.11"]
[WhiteClock "0:00:47"]
[BlackClock "0:00:22"]

1. e4 {[%clk 0:03:00]}  e5 {[%clk 0:02:58]} 2. Nf3 {[%clk 0:03:00]}  Nc6 {[%clk 0:02:58]} 3. Bb5 {[%clk 0:03:00]}  a6 {[%clk 0:02:59]} 4. Ba4 {[%clk 0:03:01]}  Nf6 {[%clk 0:02:59]} 5. d3 {[%clk 0:03:01]}  Be7 {[%clk 0:02:54]} 6. c4 {[%clk 0:02:59]}  d6 {[%clk 0:02:53]} 7. Bxc6+ {[%clk 0:02:59]}  bxc6 {[%clk 0:02:53]} 8. h3 {[%clk 0:03:00]}  O-O {[%clk 0:02:53]} 9. Nc3 {[%clk 0:03:01]}  a5 {[%clk 0:02:51]} 10. O-O {[%clk 0:03:01]}  Ne8 {[%clk 0:02:40]} 11. d4 {[%clk 0:02:53]}  exd4 {[%clk 0:02:37]} 12. Qxd4 {[%clk 0:02:52]}  Bb7 {[%clk 0:02:33]} 13. b3 {[%clk 0:02:48]}  Bf6 {[%clk 0:02:31]} 14. Qd3 {[%clk 0:02:48]}  g6 {[%clk 0:02:21]} 15. Bh6 {[%clk 0:02:43]}  Ng7 {[%clk 0:02:19]} 16. Rad1 {[%clk 0:02:43]}  Re8 {[%clk 0:02:19]} 17. Rfe1 {[%clk 0:02:43]}  Qe7 {[%clk 0:02:16]} 18. e5 {[%clk 0:02:30]}  dxe5 {[%clk 0:02:14]} 19. Ne4 {[%clk 0:02:31]}  Rad8 {[%clk 0:02:12]} 20. Qc2 {[%clk 0:02:21]}  Nf5 {[%clk 0:02:12]} 21. Nxf6+ {[%clk 0:02:19]}  Qxf6 {[%clk 0:02:01]} 22. Rxd8 {[%clk 0:02:19]}  Qxd8 {[%clk 0:01:59]} 23. Bg5 {[%clk 0:02:13]}  f6 {[%clk 0:01:57]} 24. Bd2 {[%clk 0:02:13]}  c5 {[%clk 0:01:55]} 25. Nh2 {[%clk 0:02:08]}  Qd7 {[%clk 0:01:47]} 26. Ng4 {[%clk 0:02:07]}  Kg7 {[%clk 0:01:42]} 27. Rd1 {[%clk 0:01:57]}  Nd4 {[%clk 0:01:41]} 28. Qd3 {[%clk 0:01:38]}  Qc6 {[%clk 0:01:32]} 29. Qf1 {[%clk 0:01:36]}  Nf3+ {[%clk 0:01:23]} 30. Kh1 {[%clk 0:01:19]}  Nh4 {[%clk 0:01:17]} 31. f3 {[%clk 0:01:18]}  Nf5 {[%clk 0:01:13]} 32. Qf2 {[%clk 0:01:14]}  h5 {[%clk 0:01:08]} 33. Ne3 {[%clk 0:01:15]}  Nd4 {[%clk 0:01:07]} 34. Nd5 {[%clk 0:01:15]}  Qd7 {[%clk 0:01:02]} 35. Nc3 {[%clk 0:01:08]}  Nxf3 {[%clk 0:00:45]} 36. Bh6+ {[%clk 0:01:08]}  Kxh6 {[%clk 0:00:45]} 37. Rxd7 {[%clk 0:01:08]}  Nd4 {[%clk 0:00:42]} 38. Qxf6 {[%clk 0:01:04]}  Nf5 {[%clk 0:00:41]} 39. h4 {[%clk 0:00:58]}  Bxg2+ {[%clk 0:00:21]} 40. Kxg2 {[%clk 0:00:54]}  Ne3+ {[%clk 0:00:22]} 41. Kh1 {[%clk 0:00:47]} 1-0


[Site "https://www.chess.com"]

[Event "Titled Tuesday Blitz May 10 Early 2022"]
[White "Shimelkov, Vasiliy"]
[Black "Odegov, Artem"]
[WhiteFideId "13701630"]
[BlackFideId "34183644"]
[WhiteElo "2073"]
[BlackElo "2286"]
[Result "1-0"]
[Round "02"]
[TimeControl "180+1"]
[Date "2022.05.11"]
[WhiteClock "0:00:20"]
[BlackClock "0:00:02"]

1. d4 {[%clk 0:03:00]}  d5 {[%clk 0:02:58]} 2. Nf3 {[%clk 0:03:00]}  Nf6 {[%clk 0:02:58]} 3. c4 {[%clk 0:03:00]}  e6 {[%clk 0:02:56]} 4. g3 {[%clk 0:02:59]}  c5 {[%clk 0:02:57]} 5. cxd5 {[%clk 0:02:58]}  exd5 {[%clk 0:02:57]} 6. Bg2 {[%clk 0:02:58]}  Nc6 {[%clk 0:02:57]} 7. O-O {[%clk 0:02:58]}  Be7 {[%clk 0:02:58]} 8. Nc3 {[%clk 0:02:57]}  O-O {[%clk 0:02:58]} 9. Bg5 {[%clk 0:02:57]}  cxd4 {[%clk 0:02:56]} 10. Nxd4 {[%clk 0:02:56]}  h6 {[%clk 0:02:57]} 11. Bf4 {[%clk 0:02:41]}  Be6 {[%clk 0:02:52]} 12. Rc1 {[%clk 0:02:28]}  Qd7 {[%clk 0:02:50]} 13. Qd2 {[%clk 0:02:24]}  Rae8 {[%clk 0:02:43]} 14. Rfd1 {[%clk 0:02:22]}  Bh3 {[%clk 0:02:41]} 15. Bh1 {[%clk 0:02:11]}  Na5 {[%clk 0:02:12]} 16. b3 {[%clk 0:01:44]}  Bb4 {[%clk 0:02:02]} 17. Qd3 {[%clk 0:01:36]}  g5 {[%clk 0:01:40]} 18. Bd2 {[%clk 0:01:31]}  Nc6 {[%clk 0:01:23]} 19. Nc2 {[%clk 0:01:20]}  Bc5 {[%clk 0:01:11]} 20. Be1 {[%clk 0:01:14]}  Ne5 {[%clk 0:01:07]} 21. Qd2 {[%clk 0:01:14]}  Rd8 {[%clk 0:00:37]} 22. Na4 {[%clk 0:01:03]}  Be7 {[%clk 0:00:16]} 23. Ne3 {[%clk 0:00:51]}  d4 {[%clk 0:00:13]} 24. Nc2 {[%clk 0:00:44]}  d3 {[%clk 0:00:09]} 25. Qc3 {[%clk 0:00:35]}  Qf5 {[%clk 0:00:05]} 26. Ne3 {[%clk 0:00:27]}  Qe6 {[%clk 0:00:03]} 27. exd3 {[%clk 0:00:26]}  Nfg4 {[%clk 0:00:02]} 28. d4 {[%clk 0:00:23]}  Nxe3 {[%clk 0:00:02]} 29. Qxe3 {[%clk 0:00:22]}  Ng4 {[%clk 0:00:02]} 30. Qxe6 {[%clk 0:00:22]}  fxe6 {[%clk 0:00:03]} 31. Bxb7 {[%clk 0:00:22]}  Bd6 {[%clk 0:00:02]} 32. Bg2 {[%clk 0:00:21]}  Bxg2 {[%clk 0:00:01]} 33. Kxg2 {[%clk 0:00:22]}  Rf6 {[%clk 0:00:02]} 34. h3 {[%clk 0:00:21]}  h5 {[%clk 0:00:01]} 35. hxg4 {[%clk 0:00:21]}  hxg4 {[%clk 0:00:02]} 36. Bd2 {[%clk 0:00:21]}  Kf7 {[%clk 0:00:02]} 37. Bxg5 {[%clk 0:00:21]}  Rh8 {[%clk 0:00:02]} 38. Bxf6 {[%clk 0:00:20]}  Kxf6 {[%clk 0:00:02]} 39. Rh1 {[%clk 0:00:20]} 1-0


[Site "https://www.chess.com"]